bitfinex/quotes_SOLUSD_20260117
["timestamp","ask_amount","ask_price","bid_price","bid_amount"]
[1768684921732,6.95080813,144.29,144.26,2.28694184]
[1768684922042,5.18957514,144.28,144.26,2.28694184]
[1768684922220,6.95080813,144.29,144.26,2.28694184]
[1768684922421,5.189664,144.28,144.26,2.28694184]
[1768684922647,6.93237785,144.31,144.27,2.15967614]
[1768684922937,6.93237785,144.31,144.29,4.22644199]
[1768684923139,0.02166213,144.33,144.3,1.71633624]
[1768684923517,2.10790753,144.34,144.3,1.71633624]
[1768684924323,9.03608814,144.34,144.3,8.64617915]
[1768684924524,9.03556669,144.35,144.32,1.71662176]
[1768684927949,2.10790753,144.35,144.32,8.64552367]
[1768684928124,2.10790753,144.34,144.29,34.65103702]
[1768684928333,4.17467338,144.33,144.29,25.97343578]
[1768684928545,2.10790753,144.32,144.29,25.97343578]
[1768684928927,2.10790753,144.32,144.29,8.64791727]
[1768684929142,2.10790753,144.3,144.26,10.92885391]
[1768684929338,2.06676585,144.3,144.26,8.86208806]
[1768684930143,8.99677405,144.3,144.26,8.86208806]
[1768684931326,11.10468158,144.3,144.26,8.86208806]
[1768684931525,2.10790753,144.29,144.26,8.86208806]
[1768684932149,4.17467338,144.3,144.27,1.79783436]
[1768684932426,2.10790753,144.3,144.27,1.79783436]
[1768684938855,2.10790753,144.3,144.27,8.72914916]
[1768684939249,2.07790754,144.3,144.27,8.72914916]
[1768684939954,6.92915153,144.32,144.28,1.92142853]
[1768684940763,6.92915153,144.32,144.29,1.93253431]
[1768684941251,9.03705906,144.32,144.29,1.93253431]
[1768684941954,19.38871608,144.33,144.29,1.93253431]
[1768684941955,9.11886344,144.33,144.3,1.95436465]
[1768684942160,7.88150244,144.33,144.3,1.95436465]
[1768684942452,9.11838453,144.34,144.3,1.95436465]
[1768684942840,9.11838453,144.34,144.31,1.96509213]
[1768684947149,2.19019303,144.34,144.31,8.89450907]
[1768684954049,9.1183196,144.34,144.31,1.96509213]
[1768684962065,105.36676585,144.36,144.31,2.06676585]
[1768684962066,105.61745508,144.36,144.31,2.06676585]
[1768684962260,2.31745508,144.35,144.31,2.06676585]
[1768684962460,2.31745508,144.35,144.32,2.06676585]
[1768684963468,9.24506159,144.35,144.32,2.06676585]
[1768684963784,112.54475102,144.36,144.32,8.99573762]
[1768684964076,110.22729594,144.36,144.33,2.06676585]
[1768684964279,6.92729594,144.36,144.33,2.06676585]
[1768684964887,6.92729594,144.36,144.33,2.09156954]
[1768684965074,9.24475102,144.36,144.33,2.09156954]
[1768684966162,9.24475102,144.36,144.33,0.02480369]
[1768684966363,9.24475102,144.36,144.33,2.09156954]
[1768684977422,9.24475102,144.36,144.33,2.08897898]
[1768684981198,6.92681396,144.37,144.33,9.0174418]
[1768684981398,9.21452982,144.38,144.35,2.20759364]
[1768684982899,2.28827306,144.4,144.36,2.21997292]
[1768684983983,2.28827306,144.4,144.35,6.92756937]
[1768684983984,2.28827306,144.4,144.35,9.15362549]
[1768684984586,2.28827306,144.39,144.35,9.15362549]
[1768684985590,9.21404063,144.39,144.35,9.15362549]
[1768684985789,9.21404063,144.39,144.36,2.06417529]
[1768684985986,9.21404063,144.39,144.35,9.15362549]
[1768684986378,9.21404063,144.39,144.36,2.06417529]
[1768684986686,2.28827306,144.38,144.36,2.06417529]
[1768684993410,2.28827306,144.38,144.35,9.15362549]
[1768685003618,2.56536143,144.37,144.33,15.16]
[1768685003930,2.56536143,144.37,144.32,2.06417529]
[1768685003931,2.56536143,144.36,144.32,2.06417529]
[1768685004221,2.56536143,144.35,144.31,8.9935716]
[1768685004601,2.56536143,144.35,144.32,6.92901288]
[1768685006023,2.56536143,144.34,144.31,9.27300831]
[1768685006323,2.56536143,144.34,144.31,8.99363144]
[1768685007619,2.56536143,144.34,144.31,6.92945615]
[1768685007819,2.56536143,144.34,144.31,8.99363144]
[1768685009112,2.56536143,144.34,144.31,6.92945615]
[1768685011824,2.56536143,144.34,144.31,7.24037579]
[1768685016716,2.56536143,144.34,144.31,9.30455108]
[1768685016912,2.5271003,144.36,144.33,2.40017391]
[1768685017913,2.5271003,144.36,144.33,9.3285758]
[1768685019938,2.5271003,144.36,144.34,2.06417529]
[1768685023848,2.5271003,144.36,144.33,9.3285758]
[1768685024050,9.45423982,144.36,144.33,2.40017391]
[1768685028525,9.45423982,144.36,144.33,2.06417529]
[1768685029342,9.45423982,144.36,144.32,24.53075197]
[1768685029859,2.5271003,144.36,144.32,24.53075197]
[1768685031951,2.5271003,144.36,144.32,22.46657668]
[1768685032136,2.5271003,144.36,144.32,24.53075197]
[1768685034947,2.5271003,144.36,144.32,9.37075197]
[1768685036228,2.5271003,144.36,144.32,7.30657668]
[1768685036428,2.5271003,144.36,144.32,24.53075197]
[1768685037153,9.4544164,144.36,144.32,24.53075197]
[1768685037324,9.4544164,144.36,144.32,24.53096387]
[1768685037662,2.49865461,144.35,144.32,24.53096387]
[1768685041555,2.49865461,144.35,144.32,22.46657668]
[1768685047560,2.49865461,144.35,144.32,7.30657668]
[1768685059477,2.49865461,144.35,144.32,22.46657668]
[1768685059865,2.49865461,144.35,144.32,24.53096387]
[1768685064482,2.49865461,144.35,144.32,9.37096387]
[1768685070473,2.49865461,144.35,144.32,24.53096387]
[1768685071770,2.49865461,144.35,144.32,22.46657668]
[1768685073299,2.49865461,144.35,144.32,22.5955048]
[1768685078201,2.49865461,144.35,144.32,7.4355048]
[1768685101812,2.49865461,144.35,144.32,9.49985098]
[1768685104414,2.55838417,144.36,144.34,2.06434618]
[1768685104713,2.55838417,144.37,144.35,2.06434618]
[1768685105029,2.55838417,144.39,144.33,0.56470075]
[1768685105316,2.55838417,144.36,144.33,15.16]
[1768685105907,2.55838417,144.36,144.32,8.99322666]
[1768685107028,2.55838417,144.36,144.32,9.56068458]
[1768685107423,2.55838417,144.36,144.33,2.06434618]
[1768685108725,2.55838417,144.36,144.33,8.99271616]
[1768685110432,2.55838417,144.36,144.34,2.06434618]
[1768685111332,2.55838417,144.36,144.34,8.99238357]
[1768685111832,2.06434618,144.39,144.35,2.06434618]
[1768685111833,2.55838417,144.37,144.35,2.06434618]
[1768685112811,2.55838417,144.37,144.35,8.9917649]
[1768685113823,6.92527864,144.4,144.35,11.51880929]
[1768685114715,112.28926296,144.41,144.36,4.59139057]
[1768685114920,110.22491678,144.41,144.36,11.51803823]
[1768685115930,2.55838417,144.4,144.36,11.51803823]
[1768685117226,2.55838417,144.4,144.37,2.06434618]
[1768685117419,2.55838417,144.4,144.36,11.51803823]
[1768685118525,2.55838417,144.4,144.36,9.45369205]
[1768685118726,2.55838417,144.39,144.36,11.51803823]
[1768685119510,2.55838417,144.39,144.36,6.92664766]
[1768685122632,2.55838417,144.39,144.36,8.99099384]
[1768685126538,2.55838417,144.39,144.36,11.63832223]
[1768685132752,2.58296047,144.4,144.38,2.06434618]
[1768685132952,9.50779996,144.41,144.38,4.71167457]
[1768685133644,2.58296047,144.41,144.38,4.71167457]
[1768685134756,2.58296047,144.41,144.38,11.63774002]
[1768685146960,2.58296047,144.41,144.38,9.57339384]
[1768685147259,2.58296047,144.41,144.38,11.63774002]
[1768685149456,2.58296047,144.41,144.38,9.57339384]
[1768685149760,2.58296047,144.41,144.38,11.63774002]
[1768685150467,2.58296047,144.41,144.38,9.57339384]
[1768685156647,9.50770775,144.41,144.38,9.57339384]
[1768685157476,9.50770775,144.41,144.38,2.64732839]
[1768685158164,4.72619113,144.4,144.35,2.67217046]
[1768685158372,2.66184495,144.39,144.35,26.82377154]
[1768685159074,2.66184495,144.39,144.36,6.92708191]
[1768685160771,2.66184495,144.39,144.36,9.59925237]
[1768685163992,2.66184495,144.39,144.36,11.66280307]
[1768685165491,2.66184495,144.39,144.36,8.99063261]
[1768685166277,2.66184495,144.39,144.36,11.66280307]
[1768685172602,2.66184495,144.39,144.32,6.92474728]
[1768685172603,2.66184495,144.39,144.33,2.67217046]
[1768685172784,2.66184495,144.39,144.35,4.73572116]
[1768685172967,2.66184495,144.39,144.36,2.0635507]
[1768685174490,2.66184495,144.39,144.36,8.99040397]
[1768685182793,2.66184495,144.39,144.36,6.92685327]
[1768685185405,2.66184495,144.39,144.36,9.66714987]
[1768685199506,2.66184495,144.39,144.36,6.92685327]
[1768685204019,2.66184495,144.39,144.36,9.59350809]
[1768685208604,2.61846674,144.38,144.35,6.9271917]
[1768685209110,2.61846674,144.38,144.34,24.75455267]
[1768685209420,2.61846674,144.37,144.34,24.75455267]
[1768685210332,2.58846675,144.37,144.34,24.75455267]
[1768685211130,2.58846675,144.37,144.34,9.59455267]
[1768685212107,2.58846675,144.37,144.34,6.92789785]
[1768685216826,2.58846675,144.37,144.33,17.61310901]
[1768685216827,9.51528308,144.37,144.33,24.54161998]
[1768685217025,2.67345623,144.36,144.33,24.54161998]
[1768685217331,2.64345624,144.36,144.33,24.54161998]
[1768685218032,2.61345625,144.36,144.33,24.54161998]
[1768685223737,2.61345625,144.36,144.33,9.38161998]
[1768685225941,2.61345625,144.36,144.34,2.45310901]
[1768685226730,2.61345625,144.36,144.33,6.92851097]
[1768685226934,2.61345625,144.36,144.33,9.38161998]
[1768685228836,9.60027256,144.37,144.34,2.45310901]
[1768685231940,9.60027256,144.37,144.34,9.38118796]
[1768685232142,9.57027257,144.37,144.34,11.44546305]
[1768685233438,9.57027257,144.37,144.34,9.38118796]
[1768685237719,2.67345623,144.37,144.34,9.38118796]
[1768685244551,2.67345623,144.37,144.34,11.44546305]
[1768685249736,2.67345623,144.37,144.34,9.38118796]
[1768685260340,2.67345623,144.37,144.34,11.44546305]
[1768685260640,2.64345624,144.37,144.34,11.44546305]
[1768685263364,2.61345625,144.37,144.34,11.44546305]
[1768685265260,2.58345626,144.37,144.34,11.44546305]
[1768685265568,2.58345626,144.37,144.34,9.38118796]
[1768685265864,2.55345627,144.37,144.34,9.38118796]
[1768685280973,9.48010596,144.37,144.34,9.38118796]
[1768685289680,2.55345627,144.37,144.34,9.38118796]
[1768685289885,2.52345628,144.37,144.34,9.38118796]
[1768685292190,2.49345629,144.37,144.34,9.38118796]
[1768685321999,2.49345629,144.37,144.34,6.92807895]
[1768685322198,9.31910101,144.38,144.35,2.58938698]
[1768685338520,6.92807895,144.39,144.37,2.54422072]
[1768685339023,9.35075053,144.4,144.37,2.54422072]
[1768685339226,5.19339354,144.39,144.38,2.54422072]
[1768685339404,2.42520824,144.41,144.38,2.54422072]
[1768685339722,2.42520824,144.41,144.38,4.60829276]
[1768685343013,2.42520824,144.41,144.38,4.54829276]
[1768685343320,2.42520824,144.41,144.38,4.54688292]
[1768685343638,2.42520824,144.41,144.38,2.48422072]
[1768685344002,9.35000771,144.41,144.38,2.48422072]
[1768685344223,2.42520824,144.4,144.36,15.91831507]
[1768685344434,2.42520824,144.4,144.36,6.92665401]
[1768685344923,2.42520824,144.4,144.36,9.47087473]
[1768685346909,2.42520824,144.4,144.36,11.53353693]
[1768685349522,9.35048636,144.4,144.36,11.53353693]
[1768685350217,2.42520824,144.39,144.36,11.53353693]
[1768685354130,2.42520824,144.39,144.36,9.47087473]
[1768685354834,9.35048636,144.4,144.37,2.54422072]
[1768685355021,9.35048636,144.4,144.37,2.48422072]
[1768685355330,2.42520824,144.39,144.37,2.48422072]
[1768685358326,9.35048636,144.4,144.37,2.48422072]
[1768685362540,9.35048636,144.4,144.37,2.42422072]
[1768685369038,9.35048636,144.4,144.37,2.36422072]
[1768685375945,2.43194473,144.39,144.36,8.98931621]
[1768685376339,2.43194473,144.39,144.36,11.44122795]
[1768685384652,2.43194473,144.39,144.36,9.37856575]
[1768685387856,2.43194473,144.39,144.37,2.45191174]
[1768685392056,2.43194473,144.39,144.36,9.43141572]
[1768685400470,2.22200939,144.38,144.35,6.92527812]
[1768685400643,2.22200939,144.37,144.35,6.92527812]
[1768685401045,2.22200939,144.37,144.34,2.50476171]
[1768685401761,2.22177075,144.36,144.33,9.43312402]
[1768685402048,0.61252862,144.36,144.33,9.43312402]
[1768685402277,8.98930944,144.37,144.33,9.43312402]
[1768685402450,8.98930944,144.37,144.33,6.92836231]
[1768685402650,2.0626622,144.36,144.33,6.92836231]
[1768685402857,2.0626622,144.35,144.31,9.43398125]
[1768685403562,22.85422958,144.35,144.31,9.43398125]
[1768685405354,29.78183957,144.35,144.31,9.43398125]
[1768685409882,29.80736965,144.35,144.31,9.43398125]
[1768685410385,22.87975966,144.35,144.31,9.43398125]
[1768685411287,20.81483052,144.35,144.32,2.50476171]
[1768685415489,22.87975966,144.35,144.32,2.50476171]
[1768685419688,29.80738687,144.35,144.32,2.50476171]
[1768685419891,0.08558279,144.34,144.31,9.43398125]
[1768685421392,2.15051193,144.34,144.31,2.50476171]
[1768685421601,0.09121526,144.33,144.3,9.43461393]
[1768685421777,0.06121527,144.33,144.3,9.43461393]
[1768685422489,2.12614441,144.33,144.3,2.50476171]
[1768685423285,0.06121527,144.33,144.3,2.50476171]
[1768685423479,0.03121528,144.33,144.3,2.50476171]
[1768685424086,2.09614442,144.33,144.3,2.50476171]
[1768685424394,0.03121528,144.33,144.3,2.50476171]
[1768685424892,24.24854088,144.34,144.26,0.2]
[1768685425066,108.45981468,144.33,144.26,0.2]
[1768685425268,35.97794793,144.32,144.26,1e-08]
[1768685425487,2.06492914,144.27,144.24,2.66785982]
[1768685425678,6.93000693,144.3,144.24,2.66785982]
[1768685425878,20.80083203,144.27,144.24,2.66785982]
[1768685426483,2.06492914,144.25,144.24,0.2]
[1768685426680,20.80083203,144.27,144.24,0.2]
[1768685426991,2.06492914,144.25,144.22,0.2]
[1768685427197,2.06492914,144.23,144.2,0.2]
[1768685427395,15.18,144.26,144.19,0.2]
[1768685427581,2.06492914,144.2,144.19,0.2]
[1768685427787,27.23726046,144.25,144.18,0.2]
[1768685427991,27.23726046,144.25,144.18,2.66785982]
[1768685428286,9.90623793,144.25,144.19,2.46785982]
[1768685428488,11.97116707,144.25,144.2,2.46785982]
[1768685428689,2.97382892,144.25,144.21,4.53278896]
[1768685428883,2.97382892,144.25,144.19,6.9351341]
[1768685428884,2.97382892,144.25,144.22,2.46785982]
[1768685429202,6.95277724,144.27,144.23,2.46785982]
[1768685429203,9.01770638,144.27,144.23,2.46785982]
[1768685429502,6.95416492,144.24,144.21,2.46785982]
[1768685429722,9.01909406,144.24,144.2,2.46785982]
[1768685430219,8.98909407,144.24,144.2,2.46785982]
[1768685431002,2.06492914,144.23,144.19,6.9351341]
[1768685431414,2.06492914,144.22,144.19,2.46785982]
[1768685431614,2.03492915,144.22,144.19,2.46785982]
[1768685432125,2.06492914,144.22,144.19,2.46785982]
[1768685432882,2.08626463,144.23,144.19,2.46785982]
[1768685433107,17.35139134,144.26,144.2,2.46785982]
[1768685433309,2.06492914,144.25,144.2,2.46785982]
[1768685433515,2.06492914,144.25,144.21,2.49013438]
[1768685433706,2.06492914,144.26,144.21,2.49013438]
[1768685434039,20.80227438,144.27,144.24,2.49013438]
[1768685434789,27.73379874,144.27,144.24,2.49013438]
[1768685435193,2.10171609,144.26,144.22,9.42373332]
[1768685437807,2.06492914,144.26,144.23,2.49013438]
[1768685438217,29.85040544,144.27,144.23,2.49013438]
[1768685439312,27.7854763,144.27,144.23,2.49013438]
[1768685440124,6.98320192,144.27,144.23,2.49013438]
[1768685440325,13.86553055,144.26,144.23,2.49013438]
[1768685441937,13.86553055,144.26,144.24,30.0]
[1768685444143,6.93193161,144.26,144.24,30.0]
[1768685444351,6.98312553,144.27,144.24,30.0]
[1768685444644,22.91358522,144.27,144.24,30.0]
[1768685445616,20.84865608,144.27,144.24,30.0]
[1768685445816,22.91358522,144.27,144.24,30.0]
[1768685449345,22.91358522,144.27,144.22,4.55506352]
[1768685449346,0.1020664,144.26,144.22,4.55506352]
[1768685449640,22.97071247,144.26,144.22,2.49013438]
[1768685449820,20.90578333,144.26,144.22,2.49013438]
[1768685450428,6.93240901,144.25,144.22,2.49013438]
[1768685451016,6.93240901,144.25,144.23,2.49013438]
[1768685451237,6.93240901,144.25,144.24,30.0]
[1768685451644,6.93200815,144.26,144.24,32.49013438]
[1768685452043,6.93200815,144.26,144.24,30.0]
[1768685452648,27.73572508,144.26,144.24,30.0]
[1768685453639,6.93200815,144.26,144.24,30.0]
[1768685460540,6.93200815,144.26,144.23,2.55745983]
[1768685468135,7.11078933,144.26,144.23,2.55745983]
[1768685469246,5.17256526,144.25,144.23,2.55745983]
[1768685469448,7.11078933,144.26,144.23,2.55745983]
[1768685469649,5.17272511,144.25,144.23,2.55745983]
[1768685469857,7.11078933,144.26,144.23,2.55745983]
[1768685470041,5.17160446,144.25,144.23,2.55745983]
[1768685470246,7.11078933,144.26,144.23,2.55745983]
[1768685470446,5.17369516,144.25,144.23,2.55745983]
[1768685470648,7.11078933,144.26,144.23,2.55745983]
[1768685470848,5.17368984,144.25,144.23,2.55745983]
[1768685471161,7.11078933,144.26,144.23,2.55745983]
[1768685471354,5.17396742,144.25,144.23,2.55745983]
[1768685471559,7.11078933,144.26,144.23,2.55745983]
[1768685471858,5.17408624,144.25,144.23,2.55745983]
[1768685472061,6.93200815,144.26,144.23,2.55745983]
[1768685472236,5.17373804,144.25,144.23,2.55745983]
[1768685472439,6.93200815,144.26,144.23,2.55745983]
[1768685472647,5.17409715,144.25,144.23,2.55745983]
[1768685472849,6.93200815,144.26,144.23,2.55745983]
[1768685473057,12.10615682,144.25,144.23,2.55745983]
[1768685473261,6.93242209,144.25,144.23,2.55745983]
[1768685474139,6.93210096,144.26,144.23,2.55745983]
[1768685474363,5.17525803,144.25,144.23,2.55745983]
[1768685474560,6.93210096,144.26,144.23,2.55745983]
[1768685474765,5.17535908,144.25,144.23,2.55745983]
[1768685474949,6.93210096,144.26,144.23,2.55745983]
[1768685475262,5.17535376,144.25,144.23,2.55745983]
[1768685475450,6.93210096,144.26,144.23,2.55745983]
[1768685475650,5.17589333,144.25,144.23,2.55745983]
[1768685475851,6.93210096,144.26,144.23,2.55745983]
[1768685476051,5.17589495,144.25,144.24,30.0]
[1768685477267,12.10830396,144.25,144.24,30.0]
[1768685479170,12.11473867,144.25,144.24,30.0]
[1768685481876,12.11473867,144.25,144.24,32.73523751]
[1768685482171,5.18232966,144.25,144.24,32.73523751]
[1768685486977,5.18232966,144.25,144.24,30.0]
[1768685487364,5.18342042,144.25,144.24,30.0]
[1768685488152,5.18342042,144.25,144.24,32.73523751]
[1768685489076,2.40958599,144.25,144.24,30.0]
[1768685489457,2.40958599,144.25,144.24,32.73523751]
[1768685489667,6.93212287,144.26,144.24,32.73523751]
[1768685493654,24.25893445,144.28,144.24,30.0]
[1768685493870,26.85981448,144.28,144.24,30.0]
[1768685494457,2.60088003,144.27,144.24,30.0]
[1768685495678,9.53263475,144.27,144.24,32.51274458]
[1768685497679,9.53263475,144.27,144.21,4.58005357]
[1768685497680,2.60088003,144.26,144.21,4.58005357]
[1768685497870,9.53328904,144.25,144.22,2.51274458]
[1768685498571,6.93240901,144.25,144.22,2.51274458]
[1768685499661,6.93240901,144.25,144.23,32.51274458]
[1768685502066,2.60088003,144.25,144.23,32.51274458]
[1768685504978,6.93192846,144.26,144.24,2.51274458]
[1768685505284,9.53233504,144.27,144.24,32.45274458]
[1768685515698,9.53233504,144.27,144.24,32.39274458]
[1768685525796,17.32802601,144.28,144.25,4.77734696]
[1768685525797,9.53789467,144.28,144.25,4.77734696]
[1768685525990,9.53789467,144.28,144.25,34.77734696]
[1768685526195,9.53789467,144.28,144.25,32.71003797]
[1768685526798,6.93115014,144.28,144.26,2.71003797]
[1768685527102,6.93115014,144.28,144.26,2.65003797]
[1768685527612,6.93115014,144.28,144.26,30.0]
[1768685529020,6.93115014,144.28,144.26,32.71003797]
[1768685530012,112.83743341,144.29,144.26,32.65003797]
[1768685530220,9.53743341,144.29,144.26,32.65003797]
[1768685530516,2.60674453,144.29,144.27,2.71003797]
[1768685531211,9.53690795,144.3,144.27,32.71003797]
[1768685533210,9.53690795,144.3,144.27,30.0]
[1768685533417,9.53690795,144.3,144.28,2.71003797]
[1768685533594,6.93016342,144.3,144.28,32.65003797]
[1768685534110,6.93016342,144.3,144.28,30.0]
[1768685535616,6.93016342,144.3,144.28,32.71003797]
[1768685535904,6.93016342,144.3,144.26,2.06624619]
[1768685537916,6.93016342,144.3,144.28,30.0]
[1768685538097,9.53690795,144.3,144.28,29.94]
[1768685543331,9.53690795,144.3,144.28,29.88]
[1768685561817,9.53690795,144.3,144.28,29.82]
[1768685562219,9.53690795,144.3,144.28,29.76]
[1768685563841,9.53690795,144.3,144.28,29.7]
[1768685564842,2.58961517,144.28,144.23,6.93308061]
[1768685565034,2.58961517,144.26,144.22,2.6124914]
[1768685565227,2.58961517,144.26,144.23,2.6124914]
[1768685565555,2.58961517,144.26,144.22,2.6124914]
[1768685569739,9.52166737,144.26,144.23,2.61187287]
[1768685569948,6.9320522,144.26,144.23,2.61187287]
[1768685574034,6.90205221,144.26,144.23,2.61187287]
[1768685575939,2.73580196,144.28,144.25,2.59907452]
[1768685580758,9.66679316,144.28,144.25,2.59907452]
[1768685581667,2.06624619,144.29,144.26,2.59907452]
[1768685581668,9.66642071,144.29,144.26,2.59907452]
[1768685582534,2.73580196,144.28,144.25,2.59907452]
[1768685582736,2.73580196,144.28,144.25,9.53139625]
[1768685584059,2.73580196,144.28,144.26,30.0]
[1768685591860,2.73580196,144.29,144.26,39.5309474]
[1768685592567,9.66633219,144.29,144.26,32.59907452]
[1768685596971,6.93053023,144.29,144.27,2.59907452]
[1768685597169,2.73580196,144.31,144.28,2.59907452]
[1768685597470,2.73580196,144.31,144.28,2.53907452]
[1768685597668,2.73580196,144.31,144.28,2.47907452]
[1768685597971,2.73580196,144.31,144.28,2.41907452]
[1768685598169,2.73580196,144.31,144.28,32.41907452]
[1768685598373,9.66551263,144.31,144.28,32.41907452]
[1768685599973,9.66551263,144.31,144.28,34.4859163]
[1768685601279,9.66551263,144.31,144.28,32.41907452]
[1768685605181,9.66551263,144.31,144.28,34.4859163]
[1768685605384,6.92865889,144.33,144.31,2.42741589]
[1768685605681,112.74524864,144.34,144.31,32.39000502]
[1768685606062,112.74524864,144.34,144.31,32.33000502]
[1768685607764,2.51699763,144.33,144.31,30.0]
[1768685609594,112.74524864,144.34,144.31,32.32989858]
[1768685610664,103.3,144.34,144.32,2.32987273]
[1768685610864,9.44470346,144.35,144.32,32.26987273]
[1768685614389,9.44470346,144.35,144.32,34.33671451]
[1768685614772,9.44470346,144.35,144.32,32.26987273]
[1768685616783,6.92770583,144.35,144.33,2.27016806]
[1768685617097,6.92770583,144.35,144.33,32.27023679]
[1768685617402,9.50476764,144.36,144.33,32.27023679]
[1768685618799,2.57745076,144.35,144.33,30.0]
[1768685630812,2.57745076,144.34,144.33,27.23151431]
[1768685631125,2.06684178,144.34,144.3,2.74466438]
[1768685631324,2.06684178,144.34,144.31,30.0]
[1768685632129,6.92856647,144.33,144.3,2.74466438]
[1768685633021,8.99540825,144.33,144.32,30.0]
[1768685633222,8.99540825,144.33,144.32,27.66599456]
[1768685634251,8.9939684,144.36,144.32,30.28942348]
[1768685638303,6.92682571,144.37,144.33,2.62342892]
[1768685638503,8.99366749,144.37,144.33,32.62342892]
[1768685638724,8.99366749,144.37,144.34,2.62342892]
[1768685639504,8.99366749,144.37,144.34,32.62342892]
[1768685641414,2.06684178,144.38,144.35,2.62342892]
[1768685641740,105.36684178,144.39,144.35,32.62342892]
[1768685642105,2.06684178,144.38,144.35,32.62342892]
[1768685643528,8.9930156,144.38,144.35,32.62342892]
[1768685643930,8.9930156,144.38,144.36,2.62342892]
[1768685644133,8.9930156,144.38,144.36,32.56342892]
[1768685645131,6.92617382,144.38,144.36,32.56342892]
[1768685645432,8.9930156,144.38,144.36,30.0]
[1768685649435,8.99037457,144.38,144.36,30.0]
[1768685651242,6.92617382,144.38,144.36,30.0]
[1768685651424,8.99037457,144.38,144.36,30.0]
[1768685652338,6.92617382,144.38,144.36,30.0]
[1768685652639,8.99037457,144.38,144.36,30.0]
[1768685658041,6.92617382,144.38,144.37,2.62342892]
[1768685658244,8.99037457,144.38,144.37,32.56342892]
[1768685659727,6.92617382,144.38,144.37,32.56342892]
[1768685661742,6.92617382,144.38,144.37,32.50342892]
[1768685662838,112.29009009,144.39,144.37,32.50342892]
[1768685669359,112.29009009,144.39,144.37,30.0]
[1768685670360,112.29009009,144.39,144.37,29.96882963]
[1768685671773,112.29009009,144.39,144.37,32.5536231]
[1768685674571,2.06420075,144.38,144.37,32.5536231]
[1768685677657,8.9903678,144.38,144.37,29.96882963]
[1768685680381,8.9903678,144.38,144.36,2.36954125]
[1768685680588,2.06420075,144.37,144.36,2.36954125]
[1768685681874,8.9903678,144.38,144.36,2.36954125]
[1768685682377,8.9903678,144.38,144.36,32.36954125]
[1768685685069,8.9903678,144.38,144.36,30.0]
[1768685685568,8.9903678,144.38,144.36,32.36954125]
[1768685691966,6.92616705,144.38,144.36,32.36954125]
[1768685693188,6.92616705,144.38,144.33,8.99247264]
[1768685693789,6.92616705,144.38,144.34,6.9280742]
[1768685695287,6.92616705,144.38,144.35,2.54507024]
[1768685700797,9.07231154,144.38,144.35,2.54507024]
[1768685700994,2.14198917,144.37,144.33,9.47343873]
[1768685701179,2.14198917,144.37,144.34,2.54507024]
[1768685702090,4.20618992,144.37,144.34,2.54507024]
[1768685702279,2.14198917,144.37,144.34,2.54507024]
[1768685702477,4.20618992,144.37,144.34,2.54507024]
[1768685702697,9.06882613,144.37,144.34,2.54507024]
[1768685702884,11.13302688,144.37,144.34,2.54507024]
[1768685706097,4.18611839,144.36,144.33,2.54507024]
[1768685706398,4.18611839,144.35,144.31,2.54507024]
[1768685708499,9.04981726,144.35,144.31,2.54507024]
[1768685708799,11.11401801,144.35,144.32,2.54507024]
[1768685710188,9.04981726,144.35,144.32,2.54507024]
[1768685710379,11.11401801,144.35,144.32,2.54507024]
[1768685711098,8.99210037,144.35,144.32,2.54507024]
[1768685711299,8.99286114,144.35,144.32,2.54507024]
[1768685716294,6.92789962,144.35,144.32,2.54507024]
[1768685719007,8.99286114,144.35,144.32,2.54507024]
[1768685719404,6.92789962,144.35,144.32,2.54507024]
[1768685719592,4.13980883,144.38,144.33,2.54507024]
[1768685720312,4.13980883,144.38,144.35,2.54507024]
[1768685720613,6.92683979,144.37,144.35,2.54507024]
[1768685721506,6.92683979,144.37,144.35,32.54507024]
[1768685722495,8.99180131,144.37,144.35,32.54507024]
[1768685732022,8.99180131,144.37,144.35,30.0]
[1768685737122,8.99180131,144.37,144.34,2.41008462]
[1768685737807,6.92683979,144.37,144.34,2.41008462]
[1768685738102,8.99180131,144.37,144.34,2.41008462]
[1768685739220,8.99180131,144.37,144.35,32.41008462]
[1768685741225,6.92683979,144.37,144.35,32.41008462]
[1768685741524,8.99180131,144.37,144.35,32.41008462]
[1768685743024,6.92683979,144.37,144.35,32.41008462]
[1768685743227,6.92683979,144.37,144.36,2.41008462]
[1768685743408,6.92683979,144.37,144.36,32.41008462]
[1768685750532,6.92616705,144.38,144.36,32.41008462]
[1768685750746,8.99112857,144.38,144.36,30.0]
[1768685751344,6.92616705,144.38,144.36,30.0]
[1768685751527,8.99112857,144.38,144.36,30.0]
[1768685752743,8.99112857,144.38,144.36,32.26957892]
[1768685752947,6.92616705,144.38,144.36,32.26957892]
[1768685753146,8.99112857,144.38,144.36,32.26957892]
[1768685754157,6.92616705,144.38,144.36,32.26957892]
[1768685754453,8.99112857,144.38,144.36,32.26957892]
[1768685757158,6.92616705,144.38,144.36,32.26957892]
[1768685757344,8.99112857,144.38,144.36,32.26957892]
[1768685757532,6.92616705,144.38,144.36,32.26957892]